bitfinex/quotes_BTCUSD_20220226
["timestamp","ask_amount","ask_price","bid_price","bid_amount"]
[1645857259249,0.15436751,39164.0,39160.0,0.21544769]
[1645857259450,0.0512,39163.0,39161.0,0.21544769]
[1645857259848,0.0512,39163.0,39159.0,0.001]
[1645857259849,0.0512,39163.0,39160.0,0.21579867]
[1645857260050,0.1012,39163.0,39160.0,0.21579867]
[1645857260900,0.1012,39163.0,39160.0,0.21544769]
[1645857261102,0.1012,39163.0,39160.0,0.21579868]
[1645857261701,1.53149067,39166.0,39165.0,0.26311597]
[1645857261901,1.58269067,39166.0,39165.0,0.26311597]
[1645857262500,1.74551186,39166.0,39165.0,0.26311597]
[1645857262701,1.89891186,39166.0,39165.0,0.26311597]
[1645857263101,1.99891186,39166.0,39165.0,0.26311597]
[1645857264148,1.78311237,39166.0,39165.0,0.26311597]
[1645857264348,1.99891186,39166.0,39165.0,0.26311597]
[1645857264747,1.78311237,39166.0,39165.0,0.26311597]
[1645857265052,1.99891186,39166.0,39165.0,0.26311597]
[1645857265849,1.99991186,39166.0,39165.0,0.26311597]
[1645857266247,1.99923168,39166.0,39165.0,0.26311597]
[1645857267049,1.99823168,39166.0,39165.0,0.26311597]
[1645857267897,1.99923168,39166.0,39165.0,0.26311597]
[1645857268497,1.78343219,39166.0,39165.0,0.26311597]
[1645857269099,1.78243219,39166.0,39165.0,0.26311597]
[1645857269502,0.49448853,39166.0,39165.0,0.26311597]
[1645857269902,0.43129419,39166.0,39165.0,0.26311597]
[1645857270706,0.53129419,39166.0,39165.0,0.26311597]
[1645857270905,0.53831929,39166.0,39165.0,0.26311597]
[1645857272448,0.38491929,39166.0,39165.0,0.26311597]
[1645857273048,0.28491929,39166.0,39165.0,0.26311597]
[1645857273849,0.28691929,39166.0,39165.0,0.26311597]
[1645857274450,0.33691929,39166.0,39165.0,0.26311597]
[1645857275051,0.33491929,39166.0,39165.0,0.26311597]
[1645857275896,0.33691929,39166.0,39165.0,0.26311597]
[1645857276297,1.11681929,39166.0,39165.0,0.26311597]
[1645857277096,1.11481929,39166.0,39165.0,0.26311597]
[1645857277898,1.11581929,39166.0,39165.0,0.26311597]
[1645857278298,1.15437321,39166.0,39165.0,0.26311597]
[1645857279147,0.37347321,39166.0,39165.0,0.26311597]
[1645857280652,0.42347321,39166.0,39165.0,0.26311597]
[1645857281049,0.38491929,39166.0,39165.0,0.26311597]
[1645857283795,0.38591929,39166.0,39165.0,0.26311597]
[1645857285802,0.38491929,39166.0,39165.0,0.26311597]
[1645857287951,0.38691929,39166.0,39165.0,0.26311597]
[1645857289149,0.38491929,39166.0,39165.0,0.26311597]
[1645857289750,0.33371929,39166.0,39165.0,0.26311597]
[1645857289953,0.33571929,39166.0,39165.0,0.26311597]
[1645857290604,0.73787637,39166.0,39165.0,0.26311597]
[1645857291006,0.95367586,39166.0,39165.0,0.26311597]
[1645857291202,0.95167586,39166.0,39165.0,0.26311597]
[1645857291706,0.33371929,39166.0,39165.0,0.26311597]
[1645857291904,0.60271878,39166.0,39165.0,0.26311597]
[1645857292102,1.00487586,39166.0,39165.0,0.26311597]
[1645857292303,0.78907637,39166.0,39165.0,0.26311597]
[1645857292705,0.60272593,39166.0,39165.0,0.26311597]
[1645857293204,1.38262593,39166.0,39165.0,0.26311597]
[1645857293806,1.38062593,39166.0,39165.0,0.26311597]
[1645857294054,1.38262593,39166.0,39165.0,0.26311597]
[1645857295157,1.38062593,39166.0,39165.0,0.26311597]
[1645857295959,1.38262593,39166.0,39165.0,0.26311597]
[1645857297260,1.38062593,39166.0,39165.0,0.26311597]
[1645857297898,1.3790725,39166.0,39165.0,0.26311597]
[1645857298299,1.5324725,39166.0,39165.0,0.26311597]
[1645857299099,1.5314725,39166.0,39165.0,0.26311597]
[1645857299898,0.7515725,39166.0,39165.0,0.26311597]
[1645857300299,1.5314725,39166.0,39165.0,0.26311597]
[1645857300899,0.7515725,39166.0,39165.0,0.26311597]
[1645857301752,0.53576586,39166.0,39165.0,0.26311597]
[1645857301953,1.5324725,39166.0,39165.0,0.26311597]
[1645857303152,1.5314725,39166.0,39165.0,0.26311597]
[1645857304052,1.5324725,39166.0,39165.0,0.26311597]
[1645857304252,1.93462958,39166.0,39165.0,0.26311597]
[1645857305500,1.71882294,39166.0,39165.0,0.26311597]
[1645857305897,1.71782294,39166.0,39165.0,0.26311597]
[1645857306095,1.73025205,39166.0,39165.0,0.26311597]
[1645857306697,1.73113493,39166.0,39165.0,0.26311597]
[1645857306995,1.31566586,39166.0,39165.0,0.26311597]
[1645857307195,1.5314788,39166.0,39165.0,0.26311597]
[1645857307397,1.31566586,39166.0,39165.0,0.26311597]
[1645857308298,1.53147881,39166.0,39165.0,0.26311597]
[1645857308897,1.31566586,39166.0,39165.0,0.26311597]
[1645857309160,1.71782294,39166.0,39165.0,0.26311597]
[1645857309959,1.71882294,39166.0,39165.0,0.26311597]
[1645857310160,1.73376948,39166.0,39165.0,0.26311597]
[1645857310358,1.90645451,39166.0,39165.0,0.26304001]
[1645857310957,2.17622888,39166.0,39165.0,0.26304001]
[1645857311157,2.17522888,39166.0,39165.0,0.26304001]
[1645857311762,1.73276948,39166.0,39165.0,0.26304001]
[1645857313397,1.3306124,39166.0,39165.0,0.26304001]
[1645857313799,1.31566586,39166.0,39165.0,0.26304001]
[1645857314000,1.53146903,39166.0,39165.0,0.26304001]
[1645857314412,0.063873,39166.0,39165.0,0.26304001]
[1645857314600,0.62908479,39171.0,39165.0,0.47860619]
[1645857314601,0.27966117,39170.0,39165.0,0.47860619]
[1645857314804,0.063858,39170.0,39165.0,0.47860619]
[1645857315202,0.063858,39170.0,39166.0,0.21556618]
[1645857315399,0.063858,39170.0,39166.0,0.41111434]
[1645857315600,0.063858,39170.0,39165.0,0.47860619]
[1645857315802,0.27966117,39170.0,39165.0,0.26304001]
[1645857316557,0.37966117,39170.0,39165.0,0.26304001]
[1645857317652,0.78181825,39170.0,39165.0,0.26304001]
[1645857318052,0.55532392,39170.0,39165.0,0.26304001]
[1645857318453,0.38266117,39170.0,39165.0,0.26304001]
[1645857319151,0.37966117,39170.0,39165.0,0.26304001]
[1645857319352,0.163858,39170.0,39165.0,0.26304001]
[1645857320053,0.37966117,39170.0,39165.0,0.26304001]
[1645857320714,1.15956117,39170.0,39165.0,0.26304001]
[1645857320916,0.99570317,39169.0,39165.0,0.26304001]
[1645857321415,0.21580317,39169.0,39165.0,0.26304001]
[1645857321814,0.37966117,39170.0,39165.0,0.26304001]
[1645857322614,0.78181825,39170.0,39165.0,0.26304001]
[1645857322817,0.21580317,39169.0,39165.0,0.26304001]
[1645857324064,0.7819,39169.0,39165.0,0.26304001]
[1645857324264,0.93465193,39166.0,39165.0,0.26304001]
[1645857324466,1.13805193,39166.0,39165.0,0.26304001]
[1645857324664,1.18805193,39166.0,39165.0,0.26304001]
[1645857324870,1.23925193,39166.0,39165.0,0.26304001]
[1645857326466,0.45935193,39166.0,39165.0,0.26304001]
[1645857327267,1.4550551,39166.0,39165.0,0.26304001]
[1645857328907,0.6751551,39166.0,39165.0,0.26304001]
[1645857329706,1.4550551,39166.0,39165.0,0.26304001]
[1645857330308,1.85721218,39166.0,39165.0,0.26304001]
[1645857330507,1.64140901,39166.0,39165.0,0.26304001]
[1645857331556,1.85718191,39166.0,39165.0,0.26304001]
[1645857331956,1.85818191,39166.0,39165.0,0.26304001]
[1645857332555,1.45602483,39166.0,39165.0,0.26304001]
[1645857332760,0.52272483,39166.0,39165.0,0.26304001]
[1645857333158,0.52172483,39166.0,39165.0,0.26304001]
[1645857333760,0.30595193,39166.0,39165.0,0.26304001]
[1645857334061,0.52272483,39166.0,39165.0,0.26304001]
[1645857334559,0.67612483,39166.0,39165.0,0.26304001]
[1645857334759,1.45602483,39166.0,39165.0,0.26304001]
[1645857335160,0.67612483,39166.0,39165.0,0.26304001]
[1645857335408,0.67512483,39166.0,39165.0,0.26304001]
[1645857335806,1.45502483,39166.0,39165.0,0.26304001]
[1645857336506,0.67512483,39166.0,39165.0,0.26304001]
[1645857336908,1.45502483,39166.0,39165.0,0.26304001]
[1645857337708,0.67512483,39166.0,39165.0,0.26304001]
[1645857337911,1.45502483,39166.0,39165.0,0.26304001]
[1645857338108,0.65673373,39166.0,39165.0,0.26304001]
[1645857339362,0.65573373,39166.0,39165.0,0.26304001]
[1645857339962,0.44096083,39166.0,39165.0,0.26304001]
[1645857341362,0.43996083,39166.0,39165.0,0.26304001]
[1645857341962,0.44196083,39166.0,39165.0,0.26304001]
[1645857342163,0.44152909,39166.0,39165.0,0.26304001]
[1645857342804,1.22142909,39166.0,39165.0,0.26304001]
[1645857343007,0.44152909,39166.0,39165.0,0.26304001]
[1645857343207,1.21942909,39166.0,39165.0,0.26304001]
[1645857344004,0.43952909,39166.0,39165.0,0.26304001]
[1645857344807,0.43952909,39166.0,39151.0,0.02556]
[1645857344808,0.35,39165.0,39151.0,0.02556]
[1645857345005,0.9607,39165.0,39153.0,0.02556]
[1645857345207,0.9607,39165.0,39163.0,0.00035069]
[1645857345811,0.7799,39164.0,39163.0,0.00035069]
[1645857346106,1.05540509,39164.0,39151.0,0.20120594]
[1645857346305,1.10540509,39164.0,39161.0,0.00017549]
[1645857347356,1.10540509,39164.0,39152.0,0.31527711]
[1645857347555,1.16927709,39164.0,39161.0,0.00035069]
[1645857348460,1.16927709,39164.0,39151.0,0.30120594]
[1645857348655,1.16927709,39164.0,39161.0,0.00035069]
[1645857349655,1.1657021,39164.0,39151.0,0.30120594]
[1645857349857,1.1657021,39164.0,39161.0,0.00035069]
[1645857350056,1.1667021,39164.0,39161.0,0.00035069]
[1645857351307,1.1657021,39164.0,39161.0,0.00035069]
[1645857351703,1.1657021,39164.0,39161.0,6.658e-05]
[1645857352103,1.1657021,39164.0,39152.0,0.6644225]
[1645857352505,0.22265513,39158.0,39152.0,0.6644225]
[1645857352707,0.22265513,39158.0,39144.0,0.05]
[1645857352708,0.84379,39156.0,39147.0,0.37761579]
[1645857352907,0.84379,39156.0,39146.0,0.32367054]
[1645857352908,1.2715195,39155.0,39146.0,0.32367054]
[1645857353106,1.3715195,39155.0,39146.0,0.32367054]
[1645857353609,1.3715195,39155.0,39149.0,0.00017528]
[1645857353610,0.2077208,39151.0,39149.0,0.00017528]
[1645857353806,0.0512,39150.0,39149.0,0.00017528]
[1645857354260,0.2577208,39151.0,39150.0,0.0008651]
[1645857354458,0.3089208,39151.0,39150.0,0.0008651]
[1645857354856,0.3089208,39151.0,39150.0,0.21664396]
[1645857355960,0.3089208,39151.0,39150.0,0.0008651]
[1645857357660,0.3589208,39151.0,39150.0,0.0008651]
[1645857358509,0.3969408,39151.0,39150.0,0.0008651]
[1645857359809,1.1768408,39151.0,39150.0,0.0008651]
[1645857360213,1.2,39150.0,39149.0,0.00035075]
[1645857360415,3.13182637,39150.0,39149.0,0.00035075]
[1645857360611,3.13182637,39150.0,39137.0,0.21577886]
[1645857360612,0.9333,39146.0,39137.0,0.21577886]
[1645857360811,0.9333,39146.0,39135.0,0.04]
[1645857360812,0.90773401,39142.0,39136.0,0.21577886]
[1645857361012,0.90773401,39142.0,39135.0,0.25577886]
[1645857361013,0.08975392,39141.0,39135.0,0.25577886]
[1645857361215,1.10377095,39140.0,39135.0,0.25577886]
[1645857361413,0.7799,39138.0,39135.0,0.04]
[1645857361660,0.0512,39137.0,39135.0,0.04]
[1645857361862,0.0512,39137.0,39135.0,0.04033988]
[1645857362260,0.9845,39137.0,39135.0,0.04033988]
[1645857362861,0.9845,39137.0,39135.0,0.04]
[1645857363061,0.2046,39137.0,39135.0,0.04]
[1645857364262,0.7799,39136.0,39135.0,0.04]
[1645857364462,0.8311,39136.0,39135.0,0.04]
[1645857364664,0.9311,39136.0,39135.0,0.04]
[1645857364862,1.0312,39136.0,39135.0,0.04]
[1645857366506,0.2513,39136.0,39135.0,0.04]
[1645857366703,0.1512,39136.0,39135.0,0.04]
[1645857368102,0.1532,39136.0,39135.0,0.04]
[1645857369365,0.1512,39136.0,39135.0,0.04]
[1645857372066,0.0552,39136.0,39135.0,0.04]
[1645857373407,0.0512,39136.0,39135.0,0.04]
[1645857374413,0.01802721,39136.0,39135.0,0.04]
[1645857376210,0.02202721,39136.0,39135.0,0.04]
[1645857376853,0.01947188,39136.0,39135.0,0.04]
[1645857377253,0.01547188,39136.0,39135.0,0.04]
[1645857379960,0.113913,39138.0,39135.0,0.04]
[1645857381218,0.113913,39138.0,39135.0,0.04032942]
[1645857381818,0.18613683,39143.0,39136.0,0.45]
[1645857382123,0.0512,39142.0,39135.0,0.035]
[1645857382316,0.0512,39142.0,39138.0,0.00032941]
[1645857382716,0.06390993,39141.0,39138.0,0.00032941]
[1645857383215,1.26390993,39141.0,39135.0,0.014056]
[1645857383417,1.31390993,39141.0,39135.0,0.01392883]
[1645857383617,1.36510993,39141.0,39135.0,0.01392883]
[1645857383818,0.063914,39139.0,39135.0,0.01392883]
[1645857384059,0.22990596,39137.0,39135.0,0.01392883]
[1645857384260,0.32990596,39137.0,39135.0,0.01392883]
[1645857385260,0.27990596,39137.0,39135.0,0.01392883]
[1645857385462,0.063914,39139.0,39135.0,0.01392883]
[1645857386661,0.21386426,39138.0,39135.0,0.01392883]
[1645857387165,0.21386426,39138.0,39135.0,0.0142785]
[1645857387562,0.26386426,39138.0,39135.0,0.0142785]
[1645857388009,0.26386426,39138.0,39135.0,0.0092785]
[1645857388010,0.31386426,39138.0,39135.0,0.0092785]
[1645857388209,0.31586426,39138.0,39135.0,0.00892883]
[1645857388409,0.31586426,39138.0,39135.0,0.0092785]
[1645857389409,0.31386426,39138.0,39135.0,0.00892883]
[1645857389610,0.31386426,39138.0,39135.0,0.0092785]
[1645857391110,0.31386426,39138.0,39135.0,0.00917273]
[1645857391858,0.31386426,39138.0,39135.0,0.00882306]
[1645857392058,0.1,39138.0,39135.0,0.00917273]
[1645857392257,0.05,39138.0,39135.0,0.00917273]
[1645857392957,0.05,39138.0,39135.0,0.00882306]
[1645857393161,0.05,39138.0,39135.0,0.00917273]
[1645857393761,0.063914,39139.0,39135.0,0.00917273]
[1645857394261,0.002,39138.0,39135.0,0.00882306]
[1645857394461,0.002,39138.0,39135.0,0.00417273]
[1645857394861,0.00060301,39138.0,39135.0,0.00417273]
[1645857395314,0.00060301,39138.0,39135.0,0.00382306]
[1645857395515,0.00060301,39138.0,39135.0,0.00417273]
[1645857396115,0.002,39138.0,39135.0,0.00417273]
[1645857396517,0.002,39138.0,39135.0,0.00382306]
[1645857396714,0.002,39138.0,39135.0,0.00417273]
[1645857397415,0.063914,39139.0,39135.0,0.00417273]
[1645857397915,0.063914,39139.0,39135.0,0.21995159]
[1645857398115,0.064914,39139.0,39135.0,0.21995159]
[1645857398517,0.064914,39139.0,39137.0,0.21577886]
[1645857398718,0.064914,39139.0,39136.0,0.21577886]
[1645857399157,0.064914,39139.0,39136.0,0.21612852]
[1645857399358,0.063914,39139.0,39136.0,0.21612852]
[1645857400166,0.065914,39139.0,39136.0,0.21577886]
[1645857400363,0.065914,39139.0,39136.0,0.00034966]
[1645857401460,0.065914,39139.0,39135.0,0.00382306]
[1645857401661,0.065914,39139.0,39136.0,0.00034966]
[1645857402262,0.067914,39139.0,39136.0,0.00034966]
[1645857402666,0.06504171,39139.0,39135.0,0.00382306]
[1645857402911,0.06504171,39139.0,39136.0,0.21612852]
[1645857403511,0.06104171,39139.0,39136.0,0.21612852]
[1645857403712,0.06104171,39139.0,39136.0,0.21577886]
[1645857404013,0.06104171,39139.0,39136.0,0.21612852]
[1645857405115,0.06104171,39139.0,39135.0,0.27354831]
[1645857406315,0.21565825,39142.0,39137.0,0.1]
[1645857406572,0.003,39144.0,39142.0,0.379532]
[1645857406768,0.003,39144.0,39143.0,0.26984916]
[1645857406970,0.003,39144.0,39142.0,0.26984916]
[1645857407166,0.003,39144.0,39143.0,0.83381453]
[1645857407366,0.21565825,39151.0,39143.0,0.83381453]
[1645857407568,0.21565825,39151.0,39145.0,0.21586279]
[1645857408167,0.21565825,39151.0,39145.0,0.21686279]
[1645857408567,0.21474755,39151.0,39145.0,0.21686279]
[1645857409168,0.50286347,39154.0,39145.0,0.001]
[1645857409368,0.50286347,39154.0,39144.0,0.65870846]
[1645857409369,0.55286347,39154.0,39144.0,0.65870846]
[1645857409568,0.28330469,39154.0,39144.0,0.3888593]
[1645857410171,0.28330469,39154.0,39144.0,0.3898593]
[1645857410809,0.05,39154.0,39145.0,0.26984916]
[1645857411009,0.05,39154.0,39146.0,0.3888593]
[1645857411209,0.1,39155.0,39144.0,0.65970846]
[1645857411408,0.1,39155.0,39144.0,0.3898593]
[1645857411608,0.1,39155.0,39144.0,0.3888593]
[1645857411811,0.36955878,39155.0,39144.0,0.3888593]
[1645857412109,0.54228705,39155.0,39144.0,0.3888593]
[1645857412510,0.74878172,39155.0,39144.0,0.59369749]
[1645857413114,0.47922294,39155.0,39144.0,0.59369749]
[1645857413811,0.47922294,39155.0,39144.0,0.3888593]
[1645857414275,0.48022294,39155.0,39144.0,0.3888593]
[1645857414674,0.30749467,39155.0,39144.0,0.3888593]
[1645857414873,0.30749467,39155.0,39146.0,0.18414264]
[1645857415074,0.101,39155.0,39146.0,0.18414264]
[1645857415472,0.101,39155.0,39146.0,0.18368814]
[1645857416075,0.22999974,39154.0,39146.0,0.18368814]
[1645857416274,0.102,39155.0,39144.0,0.3888593]
[1645857417273,0.19321928,39154.0,39144.0,0.3888593]
[1645857418309,0.19521928,39154.0,39144.0,0.3888593]
[1645857418506,0.19521928,39154.0,39145.0,0.21574366]
[1645857418705,0.19521928,39154.0,39144.0,0.60460296]
[1645857419304,0.18021928,39154.0,39145.0,0.21574366]
[1645857419503,0.17821928,39154.0,39144.0,0.60460296]
[1645857420307,0.002,39154.0,39144.0,0.60460296]
[1645857420511,0.002,39154.0,39146.0,0.21574366]
[1645857420706,0.002,39154.0,39147.0,0.38829678]
[1645857420914,0.002,39154.0,39146.0,0.21574366]
[1645857421306,0.5976,39156.0,39146.0,0.21574366]
[1645857421567,1.05046975,39158.0,39146.0,0.21574366]
[1645857421765,1.09907065,39158.0,39146.0,0.21574366]
[1645857422265,1.10107065,39158.0,39147.0,0.38648982]
[1645857422567,1.30550836,39158.0,39147.0,0.5560885]
[1645857422766,1.30550836,39158.0,39147.0,0.77183216]
[1645857422967,1.13279057,39158.0,39147.0,0.38534234]
[1645857423366,0.91703771,39158.0,39147.0,0.16959868]
[1645857423571,0.38847104,39157.0,39144.0,0.21574366]
[1645857423767,0.21575286,39157.0,39144.0,0.21574366]
[1645857424066,0.38847104,39157.0,39145.0,0.38648982]
[1645857424465,0.38847104,39157.0,39144.0,0.21674366]
[1645857424466,0.00173871,39154.0,39144.0,0.21674366]
[1645857424865,0.00173871,39154.0,39145.0,0.38648982]
[1645857425066,0.00173871,39154.0,39145.0,0.60223348]
[1645857426312,0.00173871,39154.0,39145.0,0.60323348]
[1645857427615,0.00173871,39154.0,39145.0,0.38648982]
[1645857428014,0.00173871,39154.0,39148.0,0.18662471]
[1645857428214,0.00173871,39154.0,39149.0,0.38648982]
[1645857428416,0.00173871,39154.0,39148.0,0.18662471]
[1645857429053,0.00173871,39154.0,39145.0,0.60323348]
[1645857429258,0.00173871,39154.0,39145.0,0.38748982]
[1645857429653,0.00173871,39154.0,39145.0,0.38648982]
[1645857430253,0.00273871,39154.0,39145.0,0.38648982]
[1645857431653,0.00173871,39154.0,39145.0,0.38648982]
[1645857432657,0.00173871,39154.0,39145.0,0.60223348]
[1645857433318,0.00173871,39154.0,39150.0,0.18588727]
[1645857433516,0.00173871,39154.0,39151.0,0.38648982]
[1645857433918,0.00173871,39154.0,39150.0,0.18588727]
[1645857434116,0.00173871,39154.0,39151.0,0.38648982]
[1645857434317,0.00373871,39154.0,39151.0,0.38648982]
[1645857434919,0.00373871,39154.0,39150.0,0.18588727]
[1645857435520,0.00173871,39154.0,39150.0,0.18588727]
[1645857436424,0.00273871,39154.0,39150.0,0.18588727]
[1645857436661,0.00273871,39154.0,39147.0,0.02556]
[1645857436860,0.00230684,39154.0,39147.0,0.02556]
[1645857437468,0.21606838,39151.0,39145.0,0.21674366]
[1645857437665,0.21606838,39151.0,39143.0,0.21574366]
[1645857438064,0.21606838,39151.0,39144.0,0.21574366]
[1645857438664,0.21606838,39151.0,39143.0,0.21574366]
[1645857439068,0.00130684,39154.0,39143.0,0.21574366]
[1645857439466,0.00130684,39154.0,39145.0,0.21574366]
[1645857439665,0.00130684,39154.0,39142.0,0.02556]
[1645857439666,0.00130684,39154.0,39144.0,0.21574366]
[1645857440510,0.23135473,39154.0,39144.0,0.21574366]
[1645857441910,0.23128092,39154.0,39144.0,0.21574366]
[1645857442311,0.23328092,39154.0,39144.0,0.21574366]
[1645857443712,0.23128092,39154.0,39144.0,0.21574366]
[1645857444366,0.23328092,39154.0,39144.0,0.21574366]
[1645857444763,0.23328092,39154.0,39145.0,0.21574366]
[1645857444964,0.16491535,39154.0,39145.0,0.21574366]
[1645857445363,0.16491535,39154.0,39146.0,0.21574366]
[1645857445565,0.16291535,39154.0,39146.0,0.21574366]
[1645857446365,0.16491535,39154.0,39146.0,0.21574366]
[1645857447564,0.16291535,39154.0,39147.0,0.21574366]
[1645857448413,0.16591535,39154.0,39147.0,0.21574366]
[1645857449215,0.16591535,39154.0,39148.0,0.21574366]
[1645857449418,0.16591535,39154.0,39149.0,0.21574366]
[1645857449615,0.16291535,39154.0,39149.0,0.21574366]
[1645857449813,0.27963786,39156.0,39149.0,0.21574366]
[1645857450015,0.21575286,39156.0,39149.0,0.21574366]
[1645857450613,1.2114847,39157.0,39150.0,0.21574366]
[1645857450815,0.82625286,39157.0,39150.0,0.21574366]
[1645857451666,0.82625286,39157.0,39151.0,0.21574366]
[1645857452070,0.21575286,39156.0,39150.0,0.21574366]
[1645857452868,0.21575286,39156.0,39151.0,0.21574366]
[1645857453468,0.21075286,39156.0,39151.0,0.21574366]
[1645857453670,0.6105,39157.0,39151.0,0.21574366]
[1645857454469,0.6125,39157.0,39151.0,0.21574366]
[1645857455618,0.6105,39157.0,39151.0,0.21574366]
[1645857456421,0.6135,39157.0,39151.0,0.21574366]
[1645857457626,0.6105,39157.0,39151.0,0.21574366]
[1645857460467,0.51388111,39157.0,39151.0,0.21574366]
[1645857461667,0.51188111,39157.0,39151.0,0.21574366]
[1645857462472,0.51388111,39157.0,39151.0,0.21574366]
[1645857463118,0.002,39157.0,39151.0,0.21574366]
[1645857463519,0.21586471,39156.0,39151.0,0.21574366]
[1645857466022,0.77259017,39155.0,39150.0,0.21574366]
[1645857466421,0.21586471,39154.0,39149.0,0.21574366]
[1645857466667,0.38429422,39153.0,39149.0,0.21574366]
[1645857466866,0.60015893,39154.0,39150.0,0.21574366]
[1645857467070,0.21586471,39154.0,39150.0,0.21574366]
[1645857467467,0.38829595,39155.0,39150.0,0.21562808]
[1645857468466,0.39229595,39155.0,39150.0,0.21562808]
[1645857469069,0.39229595,39155.0,39148.0,0.26984916]
[1645857469670,0.38829595,39155.0,39148.0,0.26984916]
[1645857469869,0.21586471,39155.0,39148.0,0.26984916]
[1645857471420,0.38429422,39156.0,39143.0,0.22914105]
[1645857471421,0.95462453,39158.0,39149.0,0.26984916]
[1645857471718,1.00462453,39158.0,39149.0,0.26984916]
[1645857474065,1.00462453,39158.0,39149.0,0.26939726]
[1645857474465,1.00462453,39158.0,39149.0,0.49990003]
[1645857475065,0.73506575,39158.0,39149.0,0.49990003]
[1645857475365,0.05702558,39158.0,39149.0,0.26939726]
[1645857475569,0.37176114,39157.0,39149.0,0.26939726]
[1645857476367,0.37576114,39157.0,39149.0,0.26939726]
[1645857476567,0.004,39157.0,39149.0,0.26939726]
[1645857477467,0.21587108,39156.0,39151.0,0.21562846]
[1645857478125,0.21587108,39156.0,39152.0,0.21562846]
[1645857478312,0.21587108,39156.0,39151.0,0.21562846]
[1645857478915,0.21587108,39156.0,39152.0,0.21562846]
[1645857479115,0.12090658,39158.0,39152.0,0.21562846]
[1645857479116,0.21587108,39157.0,39152.0,0.21562846]
[1645857480517,0.21787108,39157.0,39152.0,0.21562846]
[1645857481763,0.21587108,39157.0,39152.0,0.21562846]
[1645857481969,0.4069836,39156.0,39152.0,0.21562846]
[1645857482165,0.21587108,39154.0,39149.0,0.21562846]
[1645857482366,0.3814236,39153.0,39149.0,0.21562846]
[1645857482564,0.4314236,39153.0,39149.0,0.21562846]
[1645857482765,0.26587108,39154.0,39150.0,0.21562846]
[1645857483764,0.26587108,39154.0,39151.0,0.21562846]
[1645857483765,0.05,39154.0,39151.0,0.21562846]
[1645857483965,0.31587108,39155.0,39150.0,0.21562846]
[1645857484166,0.1,39155.0,39151.0,0.21562846]
[1645857484365,0.21587108,39155.0,39150.0,0.21562846]
[1645857485311,0.21587108,39155.0,39151.0,0.21562846]
[1645857485717,0.31587108,39156.0,39151.0,0.21562846]
[1645857485918,0.31540378,39156.0,39151.0,0.21562846]
[1645857486716,0.31540378,39156.0,39151.0,0.21062846]
[1645857488421,0.31540378,39156.0,39152.0,0.19089154]
[1645857488818,0.0995327,39156.0,39152.0,0.19089154]
[1645857489069,0.0495327,39156.0,39152.0,0.19089154]
[1645857489270,0.05,39155.0,39152.0,0.19089154]
[1645857489672,0.1,39157.0,39152.0,0.19089154]
[1645857489873,0.99490102,39158.0,39152.0,0.19089154]
[1645857490074,0.26985615,39157.0,39152.0,0.19089154]
[1645857490475,0.89490102,39158.0,39152.0,0.19089154]
[1645857490676,0.72218633,39158.0,39152.0,0.19089154]
[1645857491079,0.45233018,39158.0,39152.0,0.19089154]
[1645857491576,0.50233018,39158.0,39152.0,0.19089154]
[1645857491776,0.12090658,39158.0,39152.0,0.19089154]
[1645857494426,0.12390658,39158.0,39152.0,0.19089154]
[1645857495228,0.3814236,39157.0,39152.0,0.19089154]
[1645857495430,0.65127975,39157.0,39150.0,0.26959809]
[1645857495629,0.3814236,39157.0,39150.0,0.26959809]
[1645857496671,0.3814236,39157.0,39152.0,0.21574843]
[1645857496672,0.2158957,39155.0,39152.0,0.21574843]
[1645857496868,0.3814236,39157.0,39152.0,0.21574843]
[1645857496869,0.2158957,39156.0,39152.0,0.21574843]
[1645857502425,0.2158957,39155.0,39152.0,0.21574843]
[1645857502826,0.2158957,39155.0,39149.0,0.26959809]
[1645857502827,0.2158957,39155.0,39151.0,0.21574843]
[1645857503026,0.2188957,39156.0,39152.0,0.21574843]
[1645857503826,0.2188957,39156.0,39153.0,0.21574843]
[1645857503827,0.2158957,39156.0,39153.0,0.21574843]
[1645857504267,0.2158957,39156.0,39152.0,0.21574843]
[1645857504868,0.77218633,39158.0,39151.0,0.21574843]
[1645857504869,0.2158957,39154.0,39151.0,0.21574843]
[1645857505269,0.3814236,39156.0,39148.0,0.19493964]
[1645857505469,0.3814236,39156.0,39151.0,0.21569979]
[1645857505470,0.21589939,39154.0,39151.0,0.21569979]
[1645857505669,0.3814236,39156.0,39148.0,0.19493964]
[1645857505970,0.21589083,39156.0,39152.0,0.21565809]
[1645857506170,0.67504396,39158.0,39150.0,0.26956064]
[1645857506370,0.21588879,39156.0,39150.0,0.26956064]
[1645857506574,0.21588879,39156.0,39148.0,0.51861018]
[1645857506575,0.21589071,39156.0,39152.0,0.21564258]
[1645857506770,0.50233018,39158.0,39150.0,0.26954955]
[1645857506973,0.50233018,39158.0,39152.0,0.21563398]
[1645857507170,0.21588983,39156.0,39152.0,0.21563416]
[1645857507372,0.50233018,39158.0,39150.0,0.26954955]
[1645857507570,0.21588984,39156.0,39152.0,0.21564201]
[1645857507824,0.21588614,39156.0,39153.0,0.21563643]
[1645857508024,0.21588254,39157.0,39151.0,0.26953226]
[1645857508224,0.12090658,39158.0,39153.0,0.21562555]
[1645857508426,0.21588201,39157.0,39151.0,0.26953226]
[1645857508625,0.12090658,39158.0,39153.0,0.21562432]
[1645857508826,0.21588688,39156.0,39153.0,0.21563674]
[1645857509024,0.12090658,39158.0,39151.0,0.26953465]
[1645857509025,0.2158838,39157.0,39151.0,0.26953465]
[1645857509228,0.12090658,39158.0,39153.0,0.21562753]
[1645857509425,0.21588341,39157.0,39151.0,0.26953465]
[1645857509624,0.12090658,39158.0,39154.0,0.2347071]
[1645857509825,0.21587974,39157.0,39154.0,0.45032122]
[1645857510025,0.50233018,39158.0,39154.0,0.2347071]
[1645857510225,0.22665798,39153.0,39152.0,0.43104754]
[1645857512469,0.22965798,39153.0,39152.0,0.43104754]
[1645857513476,0.22965798,39153.0,39152.0,0.21540451]
[1645857513771,0.22665798,39153.0,39152.0,0.21540451]
[1645857514271,0.22665798,39153.0,39152.0,0.48493356]
[1645857514475,0.22665798,39153.0,39152.0,0.21540451]
[1645857515523,0.22665798,39153.0,39152.0,0.48493356]
[1645857515925,0.22665798,39153.0,39152.0,0.21540451]
[1645857516128,0.002,39158.0,39153.0,1.22556]
[1645857516325,0.002,39158.0,39155.0,0.12556]
[1645857516528,0.00164313,39160.0,39158.0,0.02556]
[1645857516725,0.82638812,39172.0,39160.0,0.02556]
[1645857517033,0.0021,39176.0,39168.0,0.379532]
[1645857517224,0.0021,39176.0,39169.0,0.21536263]
[1645857517424,0.0021,39176.0,39170.0,0.59489463]
[1645857517626,0.0021,39176.0,39168.0,0.21536263]
[1645857517823,0.0021,39176.0,39169.0,0.379532]
[1645857518022,0.0021,39176.0,39170.0,0.76589]
[1645857518224,0.0001552,39175.0,39172.0,0.17557797]